Cogmind - Beta 14 *** ADVENTURER MODE // 2025.03.09 @ 19:23:09 // Winter2019/RPGLIKE Player: Gallgagger Result: Self-destructed Performance ------------- Evolutions (4) 2000 Regions Visited (12) 2400 Robots Destroyed (338) 1690 Value Destroyed (12743) 12743 Prototype IDs (46) 920 Alien Tech Used (0) 0 Bonus (1127) 1127 TOTAL SCORE: 20880 Bonus ------- High Alert Combat Kills 797 Follower Combat Kills 812 Aligned with FarCom 300 Friendly Fire -782 Cogmind --------- Core Integrity 377/1100 Matter 300/300 Energy 218/220 System Corruption 0% Temperature Cool (4) Movement Hovering (40) Location -6/Zion Parts ------- > --- POWER (2) -------- Makeshift Power Source Light Angular Momentum Engine > --- PROPULSION (4) --- Aerolev Unit Aerolev Unit Aerolev Unit Gravmag System > --- UTILITY (9) ------ Advanced Sensor Array Advanced Signal Interpreter Improved Melee Analysis Suite Armor Integrity Analyzer Microactuators Microactuators Force Booster Makeshift Light Armor Plating Trap Reconfigurator > --- WEAPON (3) ------- Makeshift Axe Companion Sword > --- INVENTORY (5) ---- Gravmag System Advanced Weight Redist. System DM-GVY's Chainsaw PL-3XN's Ring of Power PL-3XN's Ring of Power Peak State ------------ > --- POWER ------------ Light Nuclear Core Light Angular Momentum Engine > --- PROPULSION ------- Tri-treads Aerolev Unit > --- UTILITY ---------- Improved Heat Sink Siege Articulator Trap Scanner Advanced Visual Processing Unit Advanced Signal Interpreter Target Analyzer Reactive Plating Trap Reconfigurator > --- WEAPON ----------- Siege Cannon > --- INVENTORY -------- Advanced Sensor Array Improved Light Armor Plating Improved Datajack Stasis Trap [Rating: 83] Favorites ----------- Power Light Nuclear Core Engine Light Angular Momentum Engine Power Core Light Nuclear Core Propulsion Aerolev Unit Treads Tri-treads Wheel Wheel Hover Unit Aerolev Unit Utility Improved Heat Sink Device Improved Heat Sink Storage High-capacity Matter Pod Processor Advanced Signal Interpreter Protection Makeshift Light Armor Plating Weapon Assault Rifle Energy Gun Advanced Beam Rifle Energy Cannon Plasma Cannon Ballistic Gun Assault Rifle Ballistic Cannon Siege Cannon Special Weapon CPS Tube Slashing Weapon Companion Sword Piercing Weapon Makeshift Spear Special Melee Weapon Improved Datajack Build | -11 -10 -10 -10 -9 -8 -8 -8 -8 -6 -6 -6 -6 ------- Run | Yrd Mat Min Exi Min Mat Sto Rec Scr Fac Low Low Zio Slots Evolved 14 | 4 4 . . . 3 2 . . . 1 . . Power 1 | 1 . . . . . . . . . . . . Propulsion 3 | 1 1 . . . . 1 . . . . . . Utility 8 | 1 3 . . . 2 1 . . . 1 . . Weapon 2 | 1 . . . . 1 . . . . . . . Parts Attached 119 | 6 11 3 2 5 20 17 3 36 2 2 6 6 Power 14 | 2 1 1 . 1 6 2 . . . . 1 . Engine 9 | 2 1 . . 1 2 2 . . . . 1 . Core 5 | . . 1 . . 4 . . . . . . . Reactor . | . . . . . . . . . . . . . Propulsion 24 | 2 2 . . . 3 7 . 8 . . 2 . Treads 4 | . . . . . . . . 4 . . . . Leg . | . . . . . . . . . . . . . Wheel 4 | 2 2 . . . . . . . . . . . Hover 16 | . . . . . 3 7 . 4 . . 2 . Flight . | . . . . . . . . . . . . . Utility 42 | . 6 2 2 1 5 . 2 16 1 2 3 2 Device 21 | . 4 2 1 . 2 . 1 6 1 2 1 1 Storage 5 | . . . 1 . . . . 4 . . . . Processor 8 | . 2 . . . 2 . 1 1 . . 2 . Hackware . | . . . . . . . . . . . . . Protection 8 | . . . . 1 1 . . 5 . . . 1 Artifact . | . . . . . . . . . . . . . Weapon 39 | 2 2 . . 3 6 8 1 12 1 . . 4 Energy Gun 15 | . . . . 3 4 6 . 2 . . . . Energy Cannon 3 | . . . . . . 2 . 1 . . . . Ballistic Gun 6 | 2 2 . . . 2 . . . . . . . Ballistic Cannon 2 | . . . . . . . . 2 . . . . Launcher . | . . . . . . . . . . . . . Special Weapon 4 | . . . . . . . . 4 . . . . Impact Weapon . | . . . . . . . . . . . . . Slashing Weapon 6 | . . . . . . . . 3 . . . 3 Piercing Weapon 1 | . . . . . . . . . . . . 1 Special Melee Weapon 2 | . . . . . . . 1 . 1 . . . Unidentified Prototypes 12 | . . . . . 2 6 . 4 . . . . Parts Lost 2 | . . . . . . . . . . 1 . 1 Power . | . . . . . . . . . . . . . Propulsion . | . . . . . . . . . . . . . Utility 2 | . . . . . . . . . . 1 . 1 Weapon . | . . . . . . . . . . . . . Highest Loss Streak 1 | . . . . . . . . . . 1 . 1 To Critical Strikes . | . . . . . . . . . . . . . Average Slot Usage (%) 91 | . 94 100 95 100 100 92 95 80 89 87 88 90 Engine 8 | . 19 8 8 8 . 1 5 5 5 5 9 11 Core 4 | . . 7 8 8 12 8 5 5 5 5 1 . Treads 1 | . . . . . . . . 7 . . . . Wheel 7 | . 24 25 25 25 4 . . . . . . . Hover 12 | . . . . . 16 20 23 7 23 22 22 22 Device 22 | . 15 25 25 20 23 24 23 17 21 29 29 27 Storage 1 | . . . . 8 . . . 3 . . . . Processor 13 | . 14 16 11 8 13 11 13 14 11 11 14 16 Protection 4 | . . . . 4 6 5 5 7 12 7 5 3 Energy Gun 3 | . . . . 2 13 10 9 . . . . . Ballistic Gun 5 | . 19 16 16 13 5 5 4 . . . . . Slashing Weapon 2 | . . . . . . . . 1 5 5 5 7 Peak Build Rating 83 | 6 15 19 27 28 54 62 65 83 73 71 77 81 Average Rating 53 | 4 11 18 23 26 45 57 62 72 67 70 74 78 On Entrance 42 | . 6 15 19 27 28 53 62 57 73 67 71 77 Naked Turns . | . . . . . . . . . . . . . Heaviest Build 61 | 12 15 17 19 28 31 36 33 61 37 34 32 35 Greatest Support 84 | 32 42 36 36 36 46 42 42 84 51 51 52 43 Greatest Overweight (x) 1 | . . . . . 1 1 . . . . . . Average Overweight (x) . | . . . . . . . . . . . . . Largest Inventory Capacity 5 | . 2 3 3 3 3 3 4 4 4 4 5 5 Average Capacity 3 | . 1 2 3 3 3 3 3 4 4 4 4 5 Most Carried 5 | . 2 3 3 3 3 3 4 4 4 4 5 5 Average Carried 3 | . . 2 2 2 2 2 3 3 4 3 4 5 Final Capacity 5 | . 2 3 3 3 3 3 4 4 4 4 5 5 Final Carried 5 | . 2 3 2 3 2 3 4 4 4 3 5 5 Class Distribution -------------------- 37% | Scavenger-Scout 15% | Scavenger-Skirmisher 11% | Scavenger-Gunner 8% | Scavenger-Mutant 5% | Commander-Scout 5% | Hacker-Mutant 4% | Skirmisher 3% | Mutant Dominant Class ---------------- Scavenger-Skirmisher | -10/Materials Scavenger-Skirmisher | -10/Mines Scavenger-Mutant | -10/Exiles Scavenger-Mutant | -9/Mines Scavenger-Scout | -8/Materials Scavenger-Scout | -8/Storage Commander-Scout | -8/Recycling Scavenger-Gunner | -8/Scraptown Hacker-Mutant | -6/Factory Hacker-Scout | -6/Lower Caves Scavenger-Scout | -6/Lower Caves Scavenger-Scout | -6/Zion Resources | -11 -10 -10 -10 -9 -8 -8 -8 -8 -6 -6 -6 -6 ----------- Run | Yrd Mat Min Exi Min Mat Sto Rec Scr Fac Low Low Zio Matter Collected 7354 | . 1126 156 10 148 306 212 26 5170 10 35 82 73 Remotely . | . . . . . . . . . . . . . Salvage Created 13723 | . 1088 321 . 126 1136 1527 334 4809 1339 722 634 1687 Parts 777 | . 105 19 . 14 70 86 21 209 58 43 42 110 Haulers Intercepted 2 | . . . . . 1 1 . . . . . . Recyclers Shooed 1 | . . . . . . . . . 1 . . . Parts Field Recycled . | . . . . . . . . . . . . . Retrieved Matter . | . . . . . . . . . . . . . Parts Self-Destructed 78 | . . . . . . . . 3 . 35 38 2 Prevented 1 | . . . . . . . . 1 . . . . Kills | -11 -10 -10 -10 -9 -8 -8 -8 -8 -6 -6 -6 -6 ------- Run | Yrd Mat Min Exi Min Mat Sto Rec Scr Fac Low Low Zio Combat Hostiles Destroyed 317 | . 41 7 . 8 30 41 4 120 28 14 17 7 Melee 65 | . . . . . . . . 1 28 14 15 7 Guns 123 | . 41 7 . 8 26 37 4 . . . . . Cannons 119 | . . . . . . 2 . 117 . . . . Classes Destroyed 29 | . 4 1 . 1 4 3 . 14 . . 1 1 Worker 9 | . 2 . . . 3 1 . 1 2 . . . Hauler 2 | . . . . . 1 1 . . . . . . Recycler 5 | . . . . . 1 . 2 1 1 . . . Operator 1 | . . . . . . 1 . . . . . . Turret 1 | . . . . . . . . 1 . . . . Watcher 12 | . 3 . . . 5 2 . . 2 . . . Swarmer 43 | . 9 . . 4 . 7 . . 13 6 4 . Grunt 100 | . 32 6 . 3 19 18 . 3 8 4 7 . Brawler 6 | . . . . 1 . 2 . . 3 . . . Duelist 3 | . . . . . . 1 . . . . 2 . Protector 2 | . . . . . . 2 . . . . . . Sentry 26 | . . . . . 8 8 4 . 4 1 1 . Demolisher 2 | . . 1 . . . 1 . . . . . . Specialist 1 | . . . . . . . . 1 . . . . Hunter 9 | . . . . . 4 2 . . . 2 1 . Programmer 2 | . . . . . . . . . . . 2 . Bolteater 6 | . . . . . . . . 6 . . . . Federalist 7 | . . . . . . . . 7 . . . . Explorer 12 | . . . . . . . . 12 . . . . Ranger 11 | . . . . . . . . 11 . . . . Guru 12 | . . . . . . . . 12 . . . . Scientist 4 | . . . . . . . . 4 . . . . Scrapper 44 | . . . . . . . . 44 . . . . Elite 23 | . . . . . . . . 23 . . . . Scrapoid 1 | . . . . . . . . 1 . . . . Zionite 47 | . . . . . . . . 2 . . . 45 Tinkerer 3 | . . . . . . . . 2 . . . 1 Thug 4 | . . . . . . . . 1 . 3 . . Savage 2 | . . . . . . . . . . . . 2 Butcher 1 | . . . . . . . . . . . . 1 Marauder 1 | . . . . . . . . . . . . 1 Mutant 5 | . . . . . . . . 1 . 1 . 3 Best Kill Streak 18 | . 6 2 . 3 4 8 2 18 4 5 4 15 Combat Bots Only 18 | . 4 2 . 3 4 7 1 18 4 5 4 2 Max Kills in Single Turn 2 | . 2 1 . 1 1 2 2 2 2 1 1 2 Gunslinging 1 | . 1 . . . . 1 . . . . . . Exploded . | . . . . . . . . . . . . . Melee 2 | . . . . . . . . 1 2 1 1 1 Uniques/NPCs Destroyed 1 | . . . . . . . . 1 . . . . Triborg (-8/Scraptown) Combat | -11 -10 -10 -10 -9 -8 -8 -8 -8 -6 -6 -6 -6 -------- Run | Yrd Mat Min Exi Min Mat Sto Rec Scr Fac Low Low Zio Hostile Shots Fired 1426 | . 145 27 . 14 110 181 2 268 301 72 83 223 Missed 491 | . 41 10 . 3 32 64 . 69 111 22 35 104 Damage Taken 10787 | . 860 400 . 83 952 1302 21 2149 2115 623 720 1562 Core 7989 | . 689 315 . 65 689 954 16 1537 1522 433 577 1192 Absorbed by Shields . | . . . . . . . . . . . . . Reduced by Siege Mode 118 | . . . . . . . . 118 . . . . Redirected to Core 6399 | . 525 270 . 47 551 835 16 1417 1127 303 446 862 Ignored by Resistances 3886 | . 280 260 . 24 274 379 6 1000 618 172 266 607 Core Remaining (%) 98 | 100 . . . 98 . . . 98 . . . . Volleys Fired 680 | . 126 21 . 13 141 128 6 245 . . . . Largest 3 | . 2 2 . 2 2 2 2 3 . . . . Hottest 150 | . 40 40 . 40 132 150 122 141 . . . . Shots Fired 1069 | . 252 42 . 26 251 238 12 248 . . . . Gun 811 | . 252 42 . 26 251 226 12 2 . . . . Cannon 244 | . . . . . . 12 . 232 . . . . Launcher . | . . . . . . . . . . . . . Special 14 | . . . . . . . . 14 . . . . Kinetic 583 | . 252 42 . 26 29 4 . 230 . . . . Thermal 472 | . . . . . 222 234 12 4 . . . . Explosive . | . . . . . . . . . . . . . Electromagnetic . | . . . . . . . . . . . . . Impact 13 | . . . . . . . . 13 . . . . Robot Hit Streak 52 | . 34 11 . 17 40 29 11 52 . . . . Robot Miss Streak 5 | . 5 2 . 1 2 1 . 1 . . . . Penetration Max 2 | . . . . . 1 1 . 2 . . . . Secondary Targets 11 | . 2 . . 1 . 8 . . . . . . Max Gunslinging Chain 1 | . 1 . . 1 . 1 . . . . . . Shots Hit Robots 1215 | . 184 32 . 20 198 176 7 232 118 42 50 156 Core Hits 484 | . 78 19 . 11 71 66 6 106 39 19 16 53 Critical Kills 2 | . 2 . . . . . . . . . . . Critical Parts Destroyed 3 | . 1 . . . 1 . . 1 . . . . Critical Strikes 87 | . 3 . . . 14 12 1 39 6 . 2 10 Burn 26 | . . . . . 13 12 1 . . . . . Destroy 4 | . 3 . . . 1 . . . . . . . Blast 38 | . . . . . . . . 38 . . . . Smash 1 | . . . . . . . . 1 . . . . Melee Attacks 1192 | . . . . . . . . 8 140 47 54 943 Impact . | . . . . . . . . . . . . . Slashing 1020 | . . . . . . . . 8 140 47 54 771 Piercing 172 | . . . . . . . . . . . . 172 Sneak Attacks 29 | . . . . . . . . 4 6 10 3 6 Combat Hostiles 7 | . . . . . . . . . . 3 3 1 Follow-up Attacks 11 | . . . . . . . . . 2 . . 9 Damage Inflicted 53862 | . 2432 436 . 281 3645 4538 220 24454 5637 2443 2228 7548 Guns 11333 | . 2429 436 . 281 3645 4296 220 26 . . . . Cannons 23338 | . . . . . . 224 . 23114 . . . . Explosions . | . . . . . . . . . . . . . Melee 18187 | . . . . . . . . 331 5637 2443 2228 7548 Ramming 21 | . 3 . . . . 18 . . . . . . Kinetic 26508 | . 2429 436 . 281 226 86 . 23050 . . . . Thermal 8163 | . . . . . 3419 4434 220 90 . . . . Explosive . | . . . . . . . . . . . . . Electromagnetic . | . . . . . . . . . . . . . Impact 983 | . . . . . . . . 983 . . . . Slashing 18101 | . . . . . . . . 331 5637 2443 2228 7462 Piercing 86 | . . . . . . . . . . . . 86 Highest Corruption 2 | . . . . . . 1 1 . . 2 2 2 Average Corruption 1 | . . . . . . 1 1 . . 1 2 2 Corruption Purged . | . . . . . . . . . . . . . Corruption Blocked . | . . . . . . . . . . . . . Effects 25 | . . . . . . 10 2 . . 4 8 1 Message Errors 4 | . . . . . . 2 . . . 1 1 . Matter Fused 10 | . . . . . . 3 1 . . 1 5 . Heat Flow Errors 3 | . . . . . . . . . . 1 1 1 Energy Discharges 2 | . . . . . . 1 . . . . 1 . Data Loss (minor) 4 | . . . . . . 2 1 . . 1 . . Alerts 1 | . . . . . . 1 . . . . . . Weapon Failures 1 | . . . . . . 1 . . . . . . Overload Shots . | . . . . . . . . . . . . . Overflow Damage 4976 | . . . . . . . . 3498 377 105 218 778 Projectiles 3440 | . . . . . . . . 3440 . . . . Explosions . | . . . . . . . . . . . . . Melee 1536 | . . . . . . . . 58 377 105 218 778 Knockbacks 86 | . . . . . . . . 86 . . . . Impact 5 | . . . . . . . . 5 . . . . Kinetic 69 | . . . . . . . . 69 . . . . Secondary 12 | . . . . . . . . 12 . . . . Self-Inflicted Damage 10 | . 1 . . . . 9 . . . . . . Shots . | . . . . . . . . . . . . . Rammed 2 | . 1 . . . . 1 . . . . . . Targets Rammed 2 | . 1 . . . . 1 . . . . . . Kicked . | . . . . . . . . . . . . . Crushed . | . . . . . . . . . . . . . Highest Temperature 196 | . 25 . . . 28 8 . 15 12 159 162 196 Average Temperature 14 | . 7 . . . 13 6 . 15 7 88 81 103 Received Heat Transfer 3929 | . 558 39 . 60 459 693 9 889 656 63 150 353 Siege Activations 49 | . . . . . . . . 49 . . . . Total Turns 624 | . . . . . . . . 624 . . . . Longest Duration 49 | . . . . . . . . 49 . . . . Robots Corrupted 2 | . . . . . . . . 2 . . . . Combat Hostiles 2 | . . . . . . . . 2 . . . . Parts Fried 5 | . . . . . . . . 5 . . . . Impact Corruptions 12 | . . . . . . . . 12 . . . . Robots Melted 6 | . . . . . 4 2 . . . . . . Combat Hostiles 6 | . . . . . 4 2 . . . . . . Parts Melted 40 | . . . . . 18 18 . 2 . . . 2 Heat Transferred 15480 | . . . . . 7733 7240 370 137 . . . . Parts Sabotaged . | . . . . . . . . . . . . . Parts Stolen . | . . . . . . . . . . . . . Parts Stripped . | . . . . . . . . . . . . . Power Chain Reactions . | . . . . . . . . . . . . . Alert | -11 -10 -10 -10 -9 -8 -8 -8 -8 -6 -6 -6 -6 ------- Run | Yrd Mat Min Exi Min Mat Sto Rec Scr Fac Low Low Zio Peak Influence 916 | . 677 231 . 220 483 916 587 . 916 . . . Initial 301 | . . 31 . . 6 120 301 . . . . . Average 300 | . 276 100 . 106 253 479 414 . 526 . . . Maximum Alert Level 3 | . 2 1 . 1 2 3 2 . 3 . . . Low Security (%) 32 | 100 39 75 . 65 23 10 . . 19 . . . Level 1 38 | . 26 24 . 34 73 24 60 . 13 . . . Level 2 22 | . 34 . . . 2 48 39 . 26 . . . Level 3 6 | . . . . . . 16 . . 40 . . . Level 4 . | . . . . . . . . . . . . . Level 5 . | . . . . . . . . . . . . . High Security . | . . . . . . . . . . . . . Max Security . | . . . . . . . . . . . . . Squads Dispatched 37 | . 13 . . . 10 7 . . 6 . 1 . Investigation 25 | . 13 . . . 10 2 . . . . . . Extermination 1 | . . . . . . . . . 1 . . . Reinforcement 4 | . . . . . . 1 . . 3 . . . Assault 6 | . . . . . . 3 . . 2 . 1 . Garrison 1 | . . . . . . 1 . . . . . . Intercept . | . . . . . . . . . . . . . Searches Triggered . | . . . . . . . . . . . . . Construction Impeded . | . . . . . . . . . . . . . Haulers Reinforced . | . . . . . . . . . . . . . Active Scanning Responses . | . . . . . . . . . . . . . Cargo Convoy Interrupts . | . . . . . . . . . . . . . Stealth | -11 -10 -10 -10 -9 -8 -8 -8 -8 -6 -6 -6 -6 --------- Run | Yrd Mat Min Exi Min Mat Sto Rec Scr Fac Low Low Zio Distress Signals 7 | . 1 . . . 1 2 . . 3 . . . Communications Jammed . | . . . . . . . . . . . . . Distress Signals . | . . . . . . . . . . . . . Times Spotted 490 | . 57 9 . 9 42 68 2 117 51 15 17 103 Peak Tracking Total 11 | . 6 2 . 4 4 11 . 6 11 7 9 6 Tactical Retreats 41 | . 4 1 . 2 4 6 . 5 7 1 2 9 Traps | -11 -10 -10 -10 -9 -8 -8 -8 -8 -6 -6 -6 -6 ------- Run | Yrd Mat Min Exi Min Mat Sto Rec Scr Fac Low Low Zio Traps Triggered 9 | . 5 . . . 1 1 . . 2 . . . Indirectly . | . . . . . . . . . . . . . Trap Hack Attempts . | . . . . . . . . . . . . . Triggered . | . . . . . . . . . . . . . Disarmed . | . . . . . . . . . . . . . Reprogrammed . | . . . . . . . . . . . . . Reused 7 | . . . . . 6 . . . 1 . . . Traps Reconfigurated 46 | . . . . . 20 19 . . 7 . . . Traps Extracted . | . . . . . . . . . . . . . Installed 2 | . . . . . . . . 2 . . . . Triggered 7 | . . . . . 6 . . . 1 . . . Most Traps Carried 3 | . . 3 3 2 2 1 1 1 . . . . Machines | -11 -10 -10 -10 -9 -8 -8 -8 -8 -6 -6 -6 -6 ---------- Run | Yrd Mat Min Exi Min Mat Sto Rec Scr Fac Low Low Zio Machines Disabled 37 | . . . . . 2 5 . 27 2 1 . . Max in Single Turn 1 | . . . . . 1 1 . 1 1 1 . . Garrison Access 3 | . . . . . 1 1 . . 1 . . . Machines Repaired . | . . . . . . . . . . . . . Machines Dismantled . | . . . . . . . . . . . . . Machines Sabotaged 5 | . 3 . . . 2 . . . . . . . Overloaded Fab Kills . | . . . . . . . . . . . . . Hacking | -11 -10 -10 -10 -9 -8 -8 -8 -8 -6 -6 -6 -6 --------- Run | Yrd Mat Min Exi Min Mat Sto Rec Scr Fac Low Low Zio Machines Accessed 53 | . 11 . 1 . 14 9 10 3 3 1 1 . Terminals 33 | . 8 . . . 10 7 5 . 2 1 . . Fabricators . | . . . . . . . . . . . . . Repair Stations 2 | . 1 . . . 1 . . . . . . . Recycling Units 11 | . 2 . . . 2 2 5 . . . . . Scanalyzers . | . . . . . . . . . . . . . Garrison Access 2 | . . . . . 1 . . . 1 . . . Total Hacks 138 | . 35 . 1 . 39 20 22 11 5 4 1 . Successful 102 | . 25 . 1 . 25 15 17 11 3 4 1 . Failed 34 | . 9 . . . 13 5 5 . 2 . . . Catastrophic 4 | . . . . . 1 3 . . . . . . Database Lockouts 2 | . 1 . . . 1 . . . . . . . Manual 90 | . 27 . 1 . 33 11 14 . 4 . . . Terminals 109 | . 32 . . . 34 18 17 . 4 4 . . Fabricators . | . . . . . . . . . . . . . Repair Stations 2 | . 1 . . . 1 . . . . . . . Recycling Units 11 | . 2 . . . 2 2 5 . . . . . Scanalyzers . | . . . . . . . . . . . . . Garrison Access 3 | . . . . . 2 . . . 1 . . . Terminal Hacks 54 | . 9 . 1 . 9 10 8 11 1 4 1 . Record 6 | . . . . . . . . 2 . 4 . . Part Schematic 1 | . . . . . . . 1 . . . . . Robot Analysis 15 | . 2 . . . 3 . 2 8 . . . . Prototype ID Bank 5 | . 2 . . . 2 . 1 . . . . . Open Door 6 | . . . . . . 4 . 1 . . 1 . Machine Index 1 | . . . . . . . 1 . . . . . Terminal Index 1 | . . . . . . . 1 . . . . . Fabricator Index 1 | . . . . . . . 1 . . . . . Recycling Unit Index 1 | . 1 . . . . . . . . . . . Alert Level 3 | . . . . . 1 1 1 . . . . . Unreport Threat 7 | . 1 . . . 2 4 . . . . . . Locate Traps 1 | . 1 . . . . . . . . . . . Dispatch Records 1 | . . . . . 1 . . . . . . . Recall Reinforcements 1 | . . . . . . 1 . . . . . . Hauler Manifests 2 | . 2 . . . . . . . . . . . Registered Components 1 | . . . . . . . . . 1 . . . Derelict Proto ID Bank 1 | . . . 1 . . . . . . . . . Fabricator Hacks . | . . . . . . . . . . . . . Repair Station Hacks . | . . . . . . . . . . . . . Recycling Unit Hacks . | . . . . . . . . . . . . . Scanalyzer . | . . . . . . . . . . . . . Garrison Access Hacks 2 | . . . . . 1 . . . 1 . . . Seal Access 2 | . . . . . 1 . . . 1 . . . Unauthorized Hacks 46 | . 16 . . . 15 5 9 . 1 . . . Terminals 33 | . 13 . . . 12 3 4 . 1 . . . Botnet 23 | . 7 . . . 8 3 4 . 1 . . . Sabotage 10 | . 6 . . . 4 . . . . . . . Fabricators . | . . . . . . . . . . . . . Repair Stations 2 | . 1 . . . 1 . . . . . . . Patch 2 | . 1 . . . 1 . . . . . . . Recycling Units 11 | . 2 . . . 2 2 5 . . . . . Tunnel 11 | . 2 . . . 2 2 5 . . . . . Scanalyzers . | . . . . . . . . . . . . . Garrison Access . | . . . . . . . . . . . . . Data Cores Recovered 1 | . . . . . . 1 . . . . . . Used . | . . . . . . . . . . . . . Hacking Detections 25 | . 6 . . . 8 5 3 . 2 1 . . Full Trace Events 4 | . . . . . 3 . . . . 1 . . Feedback Events . | . . . . . . . . . . . . . Feedback Blocked . | . . . . . . . . . . . . . Robot Schematics Acquired . | . . . . . . . . . . . . . Robots Built . | . . . . . . . . . . . . . Authchips . | . . . . . . . . . . . . . Time . | . . . . . . . . . . . . . Total Robot Build Rating . | . . . . . . . . . . . . . Part Schematics Acquired 1 | . . . . . . . 1 . . . . . Parts Built . | . . . . . . . . . . . . . Authchips . | . . . . . . . . . . . . . Time . | . . . . . . . . . . . . . Total Part Build Rating . | . . . . . . . . . . . . . Parts Repaired . | . . . . . . . . . . . . . Time . | . . . . . . . . . . . . . Parts Recycled . | . . . . . . . . . . . . . Recycled Matter . | . . . . . . . . . . . . . Retrieved Matter . | . . . . . . . . . . . . . Retrieved Components . | . . . . . . . . . . . . . Parts Scanalyzed . | . . . . . . . . . . . . . Part Schematics Acquired . | . . . . . . . . . . . . . Parts Damaged . | . . . . . . . . . . . . . Bothacking | -11 -10 -10 -10 -9 -8 -8 -8 -8 -6 -6 -6 -6 ------------ Run | Yrd Mat Min Exi Min Mat Sto Rec Scr Fac Low Low Zio Used RIF Installer . | . . . . . . . . . . . . . Robots Hacked . | . . . . . . . . . . . . . Non-combat . | . . . . . . . . . . . . . Combat . | . . . . . . . . . . . . . Robot Hacks Applied . | . . . . . . . . . . . . . Relay Couplers Released . | . . . . . . . . . . . . . Fabnet Peak Effective % . | . . . . . . . . . . . . . Robots Rewired 4 | . . . . . . . . . . . 3 1 Allies Hacked . | . . . . . . . . . . . . . Hacks Repelled . | . . . . . . . . . . . . . Allies | -11 -10 -10 -10 -9 -8 -8 -8 -8 -6 -6 -6 -6 -------- Run | Yrd Mat Min Exi Min Mat Sto Rec Scr Fac Low Low Zio Total Allies 27 | . . . . 3 . 12 . 5 3 . 3 1 Largest Group 12 | . . . . 3 3 12 11 11 5 . 3 3 Highest-Rated Group 235 | . . . . 40 40 197 189 235 188 . 125 125 Highest-Rated Ally 85 | . . . . 16 16 31 29 47 47 . 85 85 Total Orders 50 | . . . . . 8 13 3 11 . . 2 13 STAY 36 | . . . . . 5 10 2 11 . . 1 7 FOLLOW 13 | . . . . . 3 3 1 . . . 1 5 GUARD 1 | . . . . . . . . . . . . 1 Ally Attacks 351 | . . . . . 7 29 . 136 94 . 2 83 Total Damage 7314 | . . . . . 76 318 . 1742 1654 . 156 3368 Kills 76 | . . . . . 3 3 . 19 14 . . 37 Allies Corrupted 3 | . . . . . . 2 . . 1 . . . Allies Melted . | . . . . . . . . . . . . . Turrets Deployed 1 | . . . . . . . . 1 . . . . Intel | -11 -10 -10 -10 -9 -8 -8 -8 -8 -6 -6 -6 -6 ------- Run | Yrd Mat Min Exi Min Mat Sto Rec Scr Fac Low Low Zio Robot Analysis Total 15 | . 2 . . . 3 . 2 8 . . . . Derelict Logs Recovered 8 | . . 1 . 2 . . . . . 1 3 1 Drone Launches . | . . . . . . . . . . . . . Drone Recoveries . | . . . . . . . . . . . . . Exploration | -11 -10 -10 -10 -9 -8 -8 -8 -8 -6 -6 -6 -6 ------------- Run | Yrd Mat Min Exi Min Mat Sto Rec Scr Fac Low Low Zio Turns Passed 17800 | 61 2937 814 234 757 2291 1191 601 3266 1010 587 813 3238 Spaces Moved 18831 | 53 1975 776 267 735 2517 1181 1084 2990 1405 1064 1168 3616 Core 1 | 1 . . . . . . . . . . . . Treads 1136 | . . . . . . . . 1136 . . . . Legs . | . . . . . . . . . . . . . Wheels 4078 | 52 1975 776 267 735 273 . . . . . . . Hover 13616 | . . . . . 2244 1181 1084 1854 1405 1064 1168 3616 Flight . | . . . . . . . . . . . . . Fastest Speed 40 | 50 86 86 86 86 52 40 40 40 40 40 40 40 Average Speed 57 | 99 92 86 86 86 55 45 40 74 40 40 40 40 Slowest Speed 132 | 100 100 86 86 86 95 112 40 132 40 40 40 40 Overloaded Moves . | . . . . . . . . . . . . . Propulsion Burnouts . | . . . . . . . . . . . . . Robots Hopped 2 | . . . . . . . . 2 . . . . Cave-ins Triggered . | . . . . . . . . . . . . . Exploration Rate (%) 79 | 4 99 99 64 99 93 92 99 93 27 98 99 70 Regions Visited 12 Branch Regions 9 Pre-discovered Areas 16 | . 2 1 . 2 2 2 5 . . 1 1 . Known Exits Taken 9 | . 1 1 . . 1 1 1 1 1 1 1 . Unknown Exits Taken 3 | 1 . . 1 1 . . . . . . . . Scrap Searched 22 | . . 1 . 4 . . . 10 . 2 4 1 Spaces Dug 76 | . . . . . 2 8 . 4 . . . 62 Terrain Destroyed 229 | . . . . . 11 30 4 122 . . . 62 Melee 62 | . . . . . . . . . . . . 62 Projectile 167 | . . . . . 11 30 4 122 . . . . AOE . | . . . . . . . . . . . . . Terrain Rammed . | . . . . . . . . . . . . . Walls Destroyed . | . . . . . . . . . . . . . Machines Disabled . | . . . . . . . . . . . . . Actions | -11 -10 -10 -10 -9 -8 -8 -8 -8 -6 -6 -6 -6 --------- Run | Yrd Mat Min Exi Min Mat Sto Rec Scr Fac Low Low Zio Total 24143 | 58 2824 882 271 832 3151 1584 1238 3766 1711 1181 1461 5184 Wait 2885 | . 670 69 . 59 409 197 135 349 96 29 184 688 Move 18815 | 52 1974 775 266 734 2516 1180 1083 2985 1404 1063 1167 3616 Hop 2 | . . . . . . . . 2 . . . . Pick Up 23 | . . 3 . . 2 . 1 16 . . 1 . Fast Attach 50 | 6 9 . 2 . 4 3 1 17 1 1 . 6 Attach 8 | . . . . . . . . 7 . 1 . . Detach 2 | . . . . . . . 1 1 . . . . Swap 61 | . 2 3 . 5 16 14 2 12 1 . 6 . Drop 59 | . . 5 3 1 8 2 2 30 3 . 2 3 Fire 680 | . 126 21 . 13 141 128 6 245 . . . . Melee 1074 | . . . . . . . . 8 138 47 53 828 Ram 2 | . 1 . . . . 1 . . . . . . Kick . | . . . . . . . . . . . . . Crush . | . . . . . . . . . . . . . Escape Stasis . | . . . . . . . . . . . . . Rewire 24 | . . . . . . . . . . . 10 14 Trap 2 | . . . . . . . . 2 . . . . Miscellaneous 456 | . 42 6 . 20 55 59 7 92 68 40 38 29 Route ------- -11/Scrapyard -10/Materials (discovered 4 exits: *Mat x3 / *Min) -10/Mines (discovered 4 exits: *Mat x2 / *Exi / *Sub) -10/Exiles -9/Mines (discovered 2 exits: *Mat x2) -8/Materials (discovered 4 exits: [*Fac x2] / *Sto x2) -8/Storage (discovered 2 exits: [*Fac] / *Rec) -8/Recycling (discovered 2 exits: *Fac / *Scr) -8/Scraptown (discovered 2 exits: *Fac x2) -6/Factory (discovered 3 exits: *Fac x2 / *Low) -6/Lower Caves -6/Lower Caves (discovered 2 exits: *Fac / *Zio) -6/Zion (discovered 1 exit: *Pro) History --------- Turn | Location | Event 1 | -11/Scrapyard | Upgraded with Power slot (x1) 1 | -11/Scrapyard | Upgraded with Propulsion slot (x1) 1 | -11/Scrapyard | Upgraded with Utility slot (x1) 1 | -11/Scrapyard | Upgraded with Weapon slot (x1) 25 | -11/Scrapyard | Discovered new exit (range 13) 62 | -11/Scrapyard | Entered Materials 276 | -10/Materials | Discovered new exit (range 8) 315 | -10/Materials | Build established: Mutant 718 | -10/Materials | Upgraded with Utility slot (x1) 807 | -10/Materials | Discovered new exit (range 8) 867 | -10/Materials | Reached level 2 912 | -10/Materials | Central database locked down 990 | -10/Materials | Discovered new exit (range 12) 1005 | -10/Materials | Build established: Skirmisher 1247 | -10/Materials | Reached level 3 1434 | -10/Materials | Reached level 4 1510 | -10/Materials | Upgraded with Propulsion slot (x1) 1510 | -10/Materials | Upgraded with Utility slot (x2) 1637 | -10/Materials | Discovered new exit (range 6) 1641 | -10/Materials | Identified exit to Materials 1832 | -10/Materials | Build established: Scavenger-Skirmisher 2905 | -10/Materials | Reached level 5 2998 | -10/Materials | Identified exit to Mines 2999 | -10/Materials | Entered Mines 3000 | -10/Mines | Assembled infested the area 3072 | -10/Mines | Found a hidden stash of uninstalled traps 3366 | -10/Mines | Discovered new exit (range 7) 3370 | -10/Mines | Identified exit to Subcaves 3463 | -10/Mines | Learned 2 Materials zone layouts 3525 | -10/Mines | Discovered exit to Materials (range 8) 3749 | -10/Mines | Discovered exit to Materials (range 4) 3808 | -10/Mines | Discovered new exit (range 5) 3811 | -10/Mines | Identified exit to Exiles 3813 | -10/Mines | Entered Exiles 3835 | -10/Exiles | Met 8R-AWN 3850 | -10/Exiles | Met EX-HEX 3874 | -10/Exiles | Met EX-BIN 3884 | -10/Exiles | Aligned with FarCom system 3885 | -10/Exiles | Given EX-Vault access code 3909 | -10/Exiles | Opened EX-Vault 3914 | -10/Exiles | Found Trap Reconfigurator 3933 | -10/Exiles | Warned to stay clear of 0b10 Research branches 3973 | -10/Exiles | Met EX-DEC 4004 | -10/Exiles | Discovered new exit (range 15) 4047 | -10/Exiles | Left Exiles lab with Trap Reconfigurator 4047 | -10/Exiles | Entered Mines 4049 | -9/Mines | Reached level 6 4108 | -9/Mines | Discovered new exit (range 4) 4217 | -9/Mines | Build established: Scavenger-Mutant 4253 | -9/Mines | Received a Rocket Launcher from a helpful Derelict 4620 | -9/Mines | Assisted by bots powering up and referring to "LRC-V3" 4630 | -9/Mines | Learned location of Zion (-6) 4686 | -9/Mines | Discovered new exit (range 5) 4804 | -9/Mines | Entered Materials 4804 | -8/Materials | Accompanied by 3 allies 4806 | -8/Materials | Reached level 7 4806 | -8/Materials | Reached level 8 5006 | -8/Materials | Upgraded with Utility slot (x1) 5182 | -8/Materials | Reached level 9 5247 | -8/Materials | Build established: Scavenger-Skirmisher 5301 | -8/Materials | Upgraded with Weapon slot (x1) 5378 | -8/Materials | Discovered new exit (range 11) 5404 | -8/Materials | Identified exit to Storage 5409 | -8/Materials | Central database locked down 5552 | -8/Materials | Build established: Scavenger-Scout 5764 | -8/Materials | Discovered new exit (range 18) 5994 | -8/Materials | Reached level 10 6118 | -8/Materials | Upgraded with Utility slot (x1) 6313 | -8/Materials | Discovered exit to Storage (range 7) 6353 | -8/Materials | Discovered new exit (range 16) 6600 | -8/Materials | Reached level 11 7095 | -8/Materials | Entered Storage 7095 | -8/Storage | Accompanied by 2 allies 7097 | -8/Storage | Reached level 12 7139 | -8/Storage | Upgraded with Utility slot (x1) 7334 | -8/Storage | Destroyed 7 combat bots 7481 | -8/Storage | Garrison activated, responded to threat 7503 | -8/Storage | Reached level 13 7705 | -8/Storage | Met a pair of Derelict thieves 7705 | -8/Storage | Upgraded with Propulsion slot (x1) 7713 | -8/Storage | Discovered new exit (range 8) 7840 | -8/Storage | Assisted by bots powering up and referring to "LRC-V3" 8133 | -8/Storage | Build established: Commander-Scout 8165 | -8/Storage | Used back door to open Recycling access 8165 | -8/Storage | Discovered new exit (range 5) 8210 | -8/Storage | Reached level 14 8259 | -8/Storage | Identified exit to Recycling 8286 | -8/Storage | Entered Recycling 8286 | -8/Recycling | Accompanied by 11 allies 8287 | -8/Recycling | Met a Zionite searching for Scraptown 8377 | -8/Recycling | Scanned before Scraplab entrance 8441 | -8/Recycling | Discovered new exit (range 22) 8810 | -8/Recycling | Entered Scraplab 8813 | -8/Recycling | Discovered new exit (range 3) 8843 | -8/Recycling | Identified exit to Scraptown 8887 | -8/Recycling | Entered Scraptown 8887 | -8/Scraptown | Accompanied by 11 allies 8887 | -8/Scraptown | System corruption cleaned by C-Scrubber 8928 | -8/Scraptown | Heard Great Nut preacher, LISTEN AND RECITE! 8978 | -8/Scraptown | Discovered new exit (range 11) 9009 | -8/Scraptown | Visited Bundlers 9032 | -8/Scraptown | Visited Spacefarers 9038 | -8/Scraptown | Visited Symbiants 9044 | -8/Scraptown | Visited Assassins FH 9194 | -8/Scraptown | Build established: Commander-Mutant 9227 | -8/Scraptown | Visited Fellowship of the Rings 9232 | -8/Scraptown | Visited Science Testing Area 9352 | -8/Scraptown | Attacked by Scraptown defenders 9354 | -8/Scraptown | Allies destroyed Triborg 9355 | -8/Scraptown | Found Siege Articulator 9359 | -8/Scraptown | Found Tri-treads 9368 | -8/Scraptown | Found Prototype Ballistic Cannon 9368 | -8/Scraptown | Identified Siege Cannon 9371 | -8/Scraptown | Found Siege Articulator 9473 | -8/Scraptown | Lost 5 allies 9517 | -8/Scraptown | Lost 4 allies 9602 | -8/Scraptown | Destroyed 17 combat bots 9709 | -8/Scraptown | Build established: Scavenger-Gunner 9858 | -8/Scraptown | Destroyed 9 combat bots 9990 | -8/Scraptown | Destroyed 9 combat bots 10450 | -8/Scraptown | Destroyed 7 combat bots 10532 | -8/Scraptown | Destroyed 18 combat bots 10598 | -8/Scraptown | Core integrity fell below 50% 10628 | -8/Scraptown | Destroyed 17 combat bots 10759 | -8/Scraptown | Visited Observation Area 10837 | -8/Scraptown | Visited Chapter 10 10915 | -8/Scraptown | Visited Abandonware Association 10944 | -8/Scraptown | Visited DA-N13 Charitable Foundation 10956 | -8/Scraptown | Found DCF Scrap (32 items) 10976 | -8/Scraptown | Visited Sword Containment 11001 | -8/Scraptown | Visited Scrapoid Pod Storage 11029 | -8/Scraptown | Visited Analyses Database 11056 | -8/Scraptown | Visited Junk Cannon Lab 11139 | -8/Scraptown | Visited Curators Association 11169 | -8/Scraptown | Found Prototype Slashing Weapon 11181 | -8/Scraptown | Found Deploy-a-Sentry 11218 | -8/Scraptown | DAS Turret deployed 11250 | -8/Scraptown | Identified DM-GVY's Chainsaw 11258 | -8/Scraptown | Found PL-3XN's Ring of Power 11295 | -8/Scraptown | Found Prototype Special Weapon 11295 | -8/Scraptown | Identified Junk Cannon 11601 | -8/Scraptown | Build established: Scavenger-Mutant 11747 | -8/Scraptown | Found Scrapoid Pod 11909 | -8/Scraptown | Scrapoid Pod released 08S05-D (x5) 12005 | -8/Scraptown | Found PL-3XN's Ring of Power 12137 | -8/Scraptown | Discovered new exit (range 3) 12138 | -8/Scraptown | Identified exit to Factory 12153 | -8/Scraptown | Entered Factory 12153 | -6/Factory | Accompanied by 4 allies 12155 | -6/Factory | Reached level 15 12243 | -6/Factory | Discovered new exit (range 13) 12243 | -6/Factory | Discovered new exit (range 21) 12298 | -6/Factory | Discovered new exit (range 5) 12300 | -6/Factory | Identified exit to Lower Caves 12377 | -6/Factory | Reached level 16 12398 | -6/Factory | Allied Derelicts emerged from ambush trap array 12503 | -6/Factory | First assault squad dispatched 12523 | -6/Factory | Reached level 17 12565 | -6/Factory | Build established: Hacker-Mutant 12620 | -6/Factory | Core integrity fell below 50% 12946 | -6/Factory | Reached level 18 13163 | -6/Factory | Entered Lower Caves 13168 | -6/Lower Caves | Upgraded with Utility slot (x1) 13176 | -6/Lower Caves | Encountered a Warlord checkpoint 13298 | -6/Lower Caves | Attracted the attention of an 0b10 base 13423 | -6/Lower Caves | Attacked by a delusional Derelict stockpiling Unaware 13436 | -6/Lower Caves | Build established: Hacker-Scout 13523 | -6/Lower Caves | Learned Factory stockpile data 13642 | -6/Lower Caves | Discovered new exit (range 20) 13698 | -6/Lower Caves | Identified exit to Lower Caves 13750 | -6/Lower Caves | Entered another Lower Caves area 13752 | -6/Lower Caves | Reached level 19 13781 | -6/Lower Caves | Build established: Scavenger-Scout 13785 | -6/Lower Caves | Discovered new exit (range 8) 13789 | -6/Lower Caves | Identified exit to Factory 13832 | -6/Lower Caves | Identified exit to Zion 13974 | -6/Lower Caves | Attracted the attention of an 0b10 outpost 14115 | -6/Lower Caves | Learned location of 1 exit from Factory 14249 | -6/Lower Caves | Spotted B-75 Beast 14313 | -6/Lower Caves | Rewired B-75 Beast 14563 | -6/Lower Caves | Entered Zion 14563 | -6/Zion | Accompanied by 3 allies 14580 | -6/Zion | Given A8's code to call for help 14580 | -6/Zion | Discovered new exit (range 12) 14584 | -6/Zion | Identified exit to Proximity Caves 14608 | -6/Zion | System corruption cleaned by Quarantine Array 14729 | -6/Zion | Attacked by Zionites 14729 | -6/Zion | Spotted 04-K5A(B) 14729 | -6/Zion | Spotted TN-4W4(B) 14825 | -6/Zion | Destroyed TN-4W4(B) 14836 | -6/Zion | Allies destroyed 04-K5A(B) 16301 | -6/Zion | Core integrity fell below 20% 17801 | -6/Zion | Self-destructed Last Messages --------------- 17699_ Acquired 10 matter. 17721_ Destroyed Mak. Cloaking Device. 17728_ Beast 5a destroyed. 17738_ Destroyed Mak. Shrapnel Gun. 17740_ CC-U7N(z) destroyed. 17752_ XL-6Q3(z) pulls a Mak. Axe out of the Twisted Machinery. 17760_ Searching scrap... 17760_ Found Hpw. Shock Rifle. 17760_ Found Slug Cannon. 17760_ Found Com. Battery. 17760_ Found Imp. Medium Treads. 17760_ Found 59 Matter. 17767_ Acquired derelict log, extracted data. 17773_ Q9-OWD(z) pulls a Mak. Shrapnel Gun out of the Twisted Machinery. 17774_ ZY-UQE(z) plays with the Twisted Machinery. 17790_ HK-778(z) pulls a Mak. Hammer out of the Twisted Machinery. Map ----- +----------------------------------------------------+ | "" ""???????????????????????#" % | | """" "#??????????????????????## | | """""" ""??????????????????????# | | """"#"" ""???????????????????????#### | | ""#""""" """""??????????????????????????# | | "##""""" """"????????????????????????????# | | "#"""""" """"????????????????????????????## | | """""""" #""##???????????????????????????# | | "" " """"#???????????????????????????## | | """##???????????????????????????## | | """"#??????????????????????????## % | | """##??????????????????????????# | | """"##?????????????????????????## | | """ """#"##?????????????????????????#" | | "" ]! """ """"##????????????????????????# | | "" %[ """ """#???????????????????????##" | | """ = """" "######????######??????????# * | | """" """ """"##" ;##??## # ####???????## | | """" """"" """"##"" ####;# %[ #???????# /= | | """ "#""" ""#"" ;# %==* ##?????### ! | | "" ""z"" [""" " * ####### * | | " """"" ==" %= " % | | """""" =%/ !%== % % | | """"" * !%/%%/ !%[ | | =*!*== % * = | | =*%% %= @ % | | z "#"" ! "! = ; ; " | | """"""" "" !%! | | " """##"" """ * ;; ; ; | | # " "#""#""" """ % % ;;; ;;" | | ""#" """""" ""#"" %= ;;;;#"" | | """ "" """" * ;;;##" | | """ """ ;##"" | | """ "" """""""" ;"""" | | """ "" """""""" " | | """ "" """""""" | | "" "" """ """""" " | | """ ""#" """"" | | """""""" """"" | | ""###""" "##""""" "" """" | | """""""#?###" ""#"""#"" "" """" # | | "##"####??#"""" ""##???#"""""" """""## ## | | #?##??????##"""" ""#????#""#"""""""###### # # | | ???????????###"""""##??????#"###"""#?????# ### ## | | ?????????????####""#???????????####??????###?# ##? | | ????????????????####?????????????????????????###?? | | ?????????????????????????????????????????????????? | | ?????????????????????????????????????????????????? | | ?????????????????????????????????????????????????? | | ?????????????????????????????????????????????????? | +----------------------------------------------------+ Best States ------------- Heat Dissipation 91 Energy Generation 33 Energy Capacity 340 Matter Stores 500 Matter Capacity 500 Sight Range 22 Robot Scan Range 20 Terrain Scan Density 10 Additional Mass Support 9 Armor Coverage 500 Resistance: KI 40 Resistance: TH 30 Resistance: EX 40 Resistance: EM 20 Resistance: I 20 Resistance: S 20 Resistance: P 20 Melee Speed Boost 40 Evasion (%) 57 Melee Accuracy 6 Target Analysis 5 Armor Integrity Analysis 30 Recoil Reduction 4 Particle Charging 15 Force Boost 20 Offensive Hacking 15 Defensive Hacking 5 Item Schematics ----------------- Lightning Gun | -8/Recycling | Hacked Robot Schematics ------------------ None Fabricated ------------ Nothing Alien Tech Used ----------------- None Achievements -------------- Sniper Challenges ------------ None RPGLIKE | -11 -10 -10 -10 -9 -8 -8 -8 -8 -6 -6 -6 -6 --------- Run | Yrd Mat Min Exi Min Mat Sto Rec Scr Fac Low Low Zio Levels Raised 18 | . 4 . . 1 5 3 . . 4 . 1 . XP Earned 32016 | 4000 6115 937 243 1450 7371 3416 541 205 5724 916 904 194 XP Spent 30945 | 2000 5250 1650 . 1470 7100 4400 1000 200 1000 2600 3875 400 Upgrades 65 | 4 7 5 . 9 10 5 1 1 7 1 11 4 Power Slot 1 | 1 . . . . . . . . . . . . Propulsion Slot 3 | 1 1 . . . . 1 . . . . . . Utility Slot 8 | 1 3 . . . 2 1 . . . 1 . . Weapon Slot 2 | 1 . . . . 1 . . . . . . . Core Integrity 10 | . . . . . . . . . 6 . . 4 Heat Dissipation 7 | . . . . 7 . . . . . . . . Energy Generation 1 | . . . . . . . . . . . 1 . Mass Support 2 | . . . . . 2 . . . . . . . Inventory Capacity 5 | . 2 1 . . . . 1 . . . 1 . Sight Range 2 | . . . . . 2 . . . . . . . Sensor Range 2 | . . . . . . . . . . . 2 . Ranged Accuracy 4 | . 1 . . 1 . 1 . . 1 . . . Melee Accuracy 3 | . . . . . . . . 1 . . 2 . Hack Attack % 1 | . . . . . . 1 . . . . . . Hack Defense % 1 | . . . . . . 1 . . . . . . KI Resistance % 2 | . . . . . . . . . . . 2 . TH Resistance % 2 | . . . . . . . . . . . 2 . EX Resistance % 4 | . . 4 . . . . . . . . . . KI Damage % 2 | . . . . 1 . . . . . . 1 . TH Damage % 3 | . . . . . 3 . . . . . . . Protomatter Created 4981 | . 658 52 . 141 717 733 109 1321 467 291 377 115 Integrity Restored 9438 | . 788 120 . 416 1048 1179 118 1998 1450 853 787 681 Core 7266 | . 641 100 . 320 697 885 85 1529 1124 823 381 681 Parts 2172 | . 147 20 . 96 351 294 33 469 326 30 406 . Protomatter Decayed 2266 | . 295 122 . . 379 366 68 767 195 6 49 19 Game ------ Seed SigixShadingSpoofer Manual? 0 Play Time 03:21:54 Cumulative 228.3 hours Start 2025.03.08 @ 20:06:16 End 2025.03.09 @ 19:23:09 Sessions 5 Manual Loads 0 Difficulty Adventurer Special Mode Winter2019/RPGLIKE Game No. 101 Rogue 0 Adventurer 101 Explorer 0 Win Type - Total 8 Types 2/1/2/2/1/0/0/0/0 Lore% 78 Gallery% 70 Achievement% 76 Wizard Run 0 Options --------- Layout 2 ASCII 0 Keyboard 0 Movement Numpad Keybinds 0 Fullscreen 2 Font 24/Smallcaps Map View 50x44 Zoom Use 0% Tactical HUD 1 Map Filters NONE Filters NONE Steam 1 RUN: 0c1f39a4-6ea0-4b05-969c-55da2f12462b